bitfinex-derivatives/quotes_ETHF0:USTF0_20240910
["timestamp","ask_amount","ask_price","bid_price","bid_amount"]
[1725934527599,0.42696,2341.8,2341.4,0.42702]
[1725934527900,0.42696,2341.8,2341.5,0.42701]
[1725934528902,0.42696,2341.8,2341.1,41.00980022]
[1725934528903,13.34795799,2341.9,2341.1,43.47]
[1725934529096,0.42699,2341.6,2341.3,0.42704]
[1725934529796,0.3969,2341.7,2341.3,0.42704]
[1725934529797,0.42701,2341.5,2341.3,0.42704]
[1725934529995,0.3969,2341.7,2341.4,0.42702]
[1725934529996,0.427,2341.6,2341.4,0.42702]
[1725934530902,0.427,2341.6,2341.3,0.42703]
[1725934531300,0.3969,2341.7,2341.2,0.42705]
[1725934531705,0.42702,2341.5,2341.2,0.42705]
[1725934533412,0.42703,2341.4,2341.2,0.42705]
[1725934534425,0.42703,2341.4,2341.2,0.80575]
[1725934538108,0.42703,2341.4,2341.3,0.42704]
[1725934540912,0.42702,2341.5,2341.3,0.42704]
[1725934542413,0.42702,2341.5,2341.3,0.82024]
[1725934546817,10.85677097,2341.6,2341.4,0.42703]
[1725934547109,0.81987,2341.8,2341.6,0.42698]
[1725934547315,0.81987,2341.8,2341.7,0.3641]
[1725934547511,5.09027,2341.8,2341.7,0.79107]
[1725934547815,0.42697,2341.8,2341.7,0.3641]
[1725934550013,0.42702,2341.5,2341.1,1.23]
[1725934550222,0.42702,2341.5,2341.4,0.42703]
[1725934551008,0.42701,2341.6,2341.4,0.42703]
[1725934551210,1.84234,2341.7,2341.4,0.42703]
[1725934551211,0.42701,2341.5,2341.4,0.42703]
[1725934553320,2.09755264,2341.7,2341.2,0.7748]
[1725934553528,0.42702,2341.5,2341.4,0.42702]
[1725934553825,11.29010392,2341.6,2341.5,0.427]
[1725934554824,11.29010392,2341.6,2341.4,0.42701]
[1725934555019,11.29010392,2341.6,2341.2,0.7748]
[1725934555226,11.29010392,2341.6,2341.5,0.42701]
[1725934555827,10.86310392,2341.6,2341.5,0.42701]
[1725934556022,0.3896,2341.9,2341.7,0.42697]
[1725934556023,0.42696,2341.8,2341.7,0.42697]
[1725934556523,10.89441562,2341.8,2341.7,0.42697]
[1725934557726,0.42697,2341.7,2341.6,0.42698]
[1725934559221,10.89442562,2341.8,2341.7,0.42697]
[1725934560013,15.80525562,2341.8,2341.2,0.3742]
[1725934560227,0.42701,2341.5,2341.4,0.42702]
[1725934560421,1.06748,2341.6,2341.3,0.42703]
[1725934560615,1.06748,2341.6,2341.2,0.3742]
[1725934560616,0.80544,2341.4,2341.2,0.3742]
[1725934560818,0.80544,2341.4,2341.3,0.42704]
[1725934564229,0.42704,2341.3,2341.2,0.80125]
[1725934564440,0.80543,2341.4,2341.3,0.42704]
[1725934565025,0.42704,2341.3,2341.2,0.80126]
[1725934565229,0.3784,2341.4,2341.2,0.80125]
[1725934565533,0.42704,2341.3,2341.2,0.80125]
[1725934565926,0.80544,2341.4,2341.2,0.80125]
[1725934566425,0.42704,2341.3,2341.2,0.80125]
[1725934568235,0.42704,2341.3,2341.2,0.3742]
[1725934569333,0.42703,2341.4,2341.3,0.42704]
[1725934569529,0.42703,2341.4,2341.2,0.3742]
[1725934569928,0.42703,2341.4,2341.3,0.42704]
[1725934570525,0.42703,2341.4,2341.2,0.80125]
[1725934571731,0.42703,2341.4,2341.3,3.62621515]
[1725934571939,0.82902,2341.5,2341.4,0.42703]
[1725934572133,0.82902,2341.5,2341.4,3.06890717]
[1725934572334,0.82902,2341.5,2341.4,3.62621515]
[1725934572532,0.82902,2341.5,2341.4,3.19918515]
[1725934572838,0.42702,2341.5,2341.4,3.62621515]
[1725934573837,0.42699,2341.7,2341.5,0.42701]
[1725934574040,0.42699,2341.7,2341.6,0.3938]
[1725934574243,0.42699,2341.7,2341.6,1.51414157]
[1725934574442,0.42699,2341.7,2341.6,1.88564157]
[1725934574845,0.42699,2341.7,2341.6,1.51414157]
[1725934578548,0.42699,2341.7,2341.6,1.94113157]
[1725934578747,0.42699,2341.7,2341.6,0.82079]
[1725934578938,0.42696,2341.8,2341.7,0.42696]
[1725934579143,0.42695,2341.9,2341.8,0.42695]
[1725934579457,11.16419212,2341.8,2341.7,2.41826]
[1725934579961,0.42695,2341.8,2341.7,2.41826]
[1725934582456,1.44471,2342.0,2341.7,1.9913]
[1725934582759,0.42695,2341.8,2341.7,2.41825]
[1725934583969,0.42695,2341.8,2341.7,0.7613]
[1725934584158,0.42695,2341.8,2341.7,0.81027]
[1725934584357,0.42697,2341.7,2341.6,0.3938]
[1725934584663,0.80247,2341.7,2341.6,0.3938]
[1725934590367,0.80247,2341.7,2341.6,0.82079]
[1725934590562,1.19307,2341.7,2341.6,0.82079]
[1725934590869,0.42703,2341.4,2341.3,1.12034157]
[1725934591069,0.42703,2341.4,2341.3,0.42704]
[1725934591269,0.42703,2341.4,2341.3,1.54738157]
[1725934592060,0.7661,2341.7,2341.3,3.79034157]
[1725934592263,0.7661,2341.7,2341.2,2.05901236]
[1725934592264,0.099,2341.9,2341.5,3.79034157]
[1725934592564,10.56896132,2341.8,2341.7,3.79034157]
[1725934592771,10.56896132,2341.8,2341.7,2.67]
[1725934592965,0.42695,2341.8,2341.7,3.09696]
[1725934593369,0.42695,2341.9,2341.7,2.67]
[1725934593667,10.92720547,2341.9,2341.7,4.21730157]
[1725934593868,0.42695,2341.8,2341.7,3.09696]
[1725934594876,10.50025547,2341.9,2341.7,2.67]
[1725934595071,0.42695,2341.8,2341.7,4.21730157]
[1725934595468,0.42695,2341.8,2341.7,0.42696]
[1725934595663,0.42697,2341.7,2341.6,1.92582157]
[1725934595869,0.81377,2341.7,2341.6,0.80548]
[1725934596167,0.81377,2341.7,2341.6,0.3785]
[1725934596764,0.81377,2341.7,2341.6,0.80549]
[1725934597059,0.42699,2341.6,2341.5,1.12034157]
[1725934597376,0.42701,2341.5,2341.4,2.30575157]
[1725934597566,0.42701,2341.5,2341.4,3.43838833]
[1725934597872,0.42701,2341.5,2341.4,1.92475157]
[1725934598068,0.42701,2341.5,2341.4,0.80441]
[1725934598270,0.42703,2341.4,2341.3,1.12034157]
[1725934598465,0.42703,2341.4,2341.2,1.92480157]
[1725934598466,0.42704,2341.4,2341.2,1.92480157]
[1725934598769,0.367,2341.6,2341.2,1.49774157]
[1725934598770,10.93484667,2341.5,2341.2,1.49774157]
[1725934598972,0.42704,2341.3,2341.2,1.49774157]
[1725934599170,0.42704,2341.4,2341.2,1.92480157]
[1725934600572,0.42704,2341.3,2341.2,1.49774157]
[1725934600776,0.3694,2341.3,2341.2,1.92480157]
[1725934601268,0.3694,2341.3,2341.2,0.80446]
[1725934601966,0.79644,2341.3,2341.2,0.3774]
[1725934603371,0.79644,2341.3,2341.2,0.80446]
[1725934603570,11.36186667,2341.5,2341.3,0.42704]
[1725934603766,10.93484667,2341.5,2341.2,0.3774]
[1725934603960,10.93484667,2341.5,2341.2,0.80445]
[1725934603961,0.42703,2341.4,2341.2,0.80445]
[1725934604369,0.42703,2341.4,2341.3,0.3866]
[1725934605167,0.80163,2341.4,2341.3,0.3866]
[1725934607579,10.93484667,2341.5,2341.3,0.81364]
[1725934607876,0.42703,2341.4,2341.3,0.81364]
[1725934608469,0.42703,2341.4,2341.3,0.3866]
[1725934608769,0.42703,2341.4,2341.3,1.50694157]
[1725934610869,11.36186667,2341.5,2341.4,0.42703]
[1725934611380,0.099,2342.0,2341.7,0.42696]
[1725934611568,0.099,2342.0,2341.8,0.7606]
[1725934611569,0.42693,2341.9,2341.8,0.7606]
[1725934611771,11.31028621,2341.9,2341.8,0.7606]
[1725934612664,11.31028621,2341.9,2341.7,1.12034157]
[1725934612665,0.42695,2341.8,2341.7,1.12034157]
[1725934613068,11.34164289,2341.8,2341.7,0.42697]
[1725934613378,11.34164289,2341.8,2341.7,1.54731157]
[1725934616784,11.34164289,2341.8,2341.7,0.42697]
[1725934620786,10.91469289,2341.8,2341.7,0.42697]
[1725934621582,0.42695,2341.8,2341.7,0.42697]
[1725934621887,0.364,2342.0,2341.9,0.42693]
[1725934621888,0.79093,2342.0,2341.9,0.42693]
[1725934622089,0.79093,2342.0,2341.9,1.65693]
[1725934624887,0.79093,2342.0,2341.9,1.23]
[1725934625093,0.42693,2341.9,2341.8,0.42694]
[1725934625678,0.42695,2341.9,2341.8,0.42695]
[1725934625883,0.42695,2341.9,2341.6,1.90564157]
[1725934625884,0.42697,2341.7,2341.6,2.33262157]
[1725934626296,0.42696,2341.8,2341.7,0.42696]
[1725934626487,0.42696,2341.8,2341.4,1.12034157]
[1725934626488,0.42701,2341.5,2341.4,1.12034157]
[1725934626796,0.42701,2341.5,2341.3,1.68051236]
[1725934626797,0.42703,2341.4,2341.3,1.12034157]
[1725934627086,0.3663,2341.4,2341.3,0.42704]
[1725934627297,0.3663,2341.4,2341.3,1.65704]
[1725934627298,0.79333,2341.4,2341.3,1.65704]
[1725934627992,0.79333,2341.4,2341.3,2.77738157]
[1725934629198,0.79333,2341.4,2341.3,2.35034157]
[1725934629989,0.79333,2341.4,2341.3,1.12034157]
[1725934631584,0.42704,2341.3,2341.2,1.48864157]
[1725934631792,0.42704,2341.3,2341.2,0.3683]
[1725934631987,0.3964,2341.7,2341.2,13.3095]
[1725934632187,0.42697,2341.7,2341.5,0.427]
[1725934632382,0.3898,2341.8,2341.6,3.4416]
[1725934632585,0.42694,2341.9,2341.8,0.42695]
[1725934632795,0.3835,2342.0,2341.7,0.80636]
[1725934633000,0.42694,2341.9,2341.7,0.3794]
[1725934633194,11.07214036,2341.9,2341.7,0.80636]
[1725934633585,0.42695,2341.8,2341.7,0.80636]
[1725934633785,11.07214036,2341.9,2341.7,0.3794]
[1725934633986,10.64520036,2341.9,2341.8,0.42695]
[1725934634198,0.099,2342.2,2341.8,6.9404]
[1725934634390,0.42689,2342.2,2342.0,3.09692]
[1725934634590,0.42689,2342.2,2342.1,0.3829]
[1725934634895,10.86189329,2342.2,2342.1,0.3829]
[1725934638804,10.43500329,2342.2,2341.8,3.09694]
[1725934638998,0.42692,2342.0,2341.8,3.46334]
[1725934639396,0.3661,2341.9,2341.8,3.46334]
[1725934639802,0.3842,2342.0,2341.8,3.46334]
[1725934640007,0.3842,2342.0,2341.8,3.0364]
[1725934640304,0.3842,2342.0,2341.8,3.46334]
[1725934640305,0.81112,2342.0,2341.8,3.46334]
[1725934640494,0.81112,2342.0,2341.9,0.42693]
[1725934642295,0.81112,2342.0,2341.8,3.46334]
[1725934642495,0.42693,2341.9,2341.8,0.3664]
[1725934642699,0.42695,2341.8,2341.6,0.42698]
[1725934643005,0.42695,2341.8,2341.6,0.81458]
[1725934643006,0.80005,2341.8,2341.6,0.81458]
[1725934643501,0.42697,2341.7,2341.6,0.3876]
[1725934644796,0.42697,2341.7,2341.6,0.81459]
[1725934644993,0.42697,2341.7,2341.6,0.3876]
[1725934645195,4.2704,2341.7,2341.3,1.12034157]
[1725934645498,0.42704,2341.3,2341.2,4.4461]
[1725934645703,0.42704,2341.4,2341.2,0.79116]
[1725934646010,0.42704,2341.4,2341.2,0.3641]
[1725934646397,0.80184,2341.4,2341.2,0.3641]
[1725934647494,0.42704,2341.3,2341.2,0.3641]
[1725934647706,0.80184,2341.4,2341.2,0.79116]
[1725934647908,0.25041429,2341.8,2341.3,9.59340406]
[1725934647909,0.42696,2341.8,2341.3,9.59340406]
[1725934648100,0.42696,2341.8,2341.6,2.67]
[1725934648309,0.42696,2341.8,2341.7,0.3866]
[1725934648599,11.26683669,2341.8,2341.7,0.3866]
[1725934652612,10.83987669,2341.8,2341.7,0.81357]
[1725934652811,0.80613,2342.0,2341.8,0.42694]
[1725934652812,0.42693,2342.0,2341.8,0.42694]
[1725934653002,0.42693,2342.0,2341.9,0.3985]
[1725934653303,0.3893,2342.3,2341.9,7.3389]
[1725934653606,11.23653561,2342.2,2341.9,3.0685]
[1725934653907,11.66341561,2342.2,2342.0,0.42691]
[1725934655509,11.66341561,2342.2,2342.0,0.42692]
[1725934655811,11.66341561,2342.2,2342.1,0.4269]
[1725934656005,0.4269,2342.1,2341.9,3.86252]
[1725934656208,11.66341561,2342.2,2341.9,3.4356]
[1725934656512,0.4269,2342.1,2341.9,3.86252]
[1725934657611,0.42692,2342.0,2341.9,0.3985]
[1725934657808,0.42692,2342.0,2341.8,2.67]
[1725934658213,0.42692,2342.0,2341.8,3.09694]
[1725934659807,4.2704,2341.9,2341.5,0.427]
[1725934659999,0.42697,2341.7,2341.5,0.427]
[1725934660204,0.42699,2341.6,2341.4,3.86431]
[1725934661111,0.42698,2341.7,2341.5,0.427]
[1725934661519,0.42699,2341.6,2341.5,0.427]
[1725934665823,0.42699,2341.7,2341.5,0.427]
[1725934668618,1.45291,2341.8,2341.4,3.4373]
[1725934668821,0.42701,2341.5,2341.4,3.86432]
[1725934669228,0.42701,2341.5,2341.4,0.42702]
[1725934669732,0.42701,2341.5,2341.2,3.464]
[1725934669927,0.42701,2341.5,2341.4,0.42703]
[1725934673036,0.42707,2341.2,2341.1,0.42707]
[1725934673225,0.42707,2341.2,2341.1,0.42708]
[1725934673625,0.42707,2341.2,2341.0,41.22709]
[1725934673825,0.42708,2341.1,2341.0,40.8]
[1725934674028,0.42708,2341.1,2341.0,0.4271]
[1725934674727,0.42708,2341.1,2340.9,41.5576]
[1725934675436,0.42708,2341.1,2341.0,0.4271]
[1725934676242,0.42708,2341.1,2341.0,1.54744157]
[1725934678037,0.42708,2341.1,2341.0,1.12034157]
[1725934679333,0.42708,2341.1,2341.0,1.54744157]
[1725934681033,0.42708,2341.2,2341.1,0.42708]
[1725934681432,0.42706,2341.2,2341.1,0.42707]
[1725934681731,0.42706,2341.2,2341.1,0.79217]
[1725934683245,10.71732939,2341.3,2341.2,0.42706]
[1725934684139,0.42704,2341.3,2341.2,0.42706]
[1725934684840,0.81254,2341.4,2341.2,0.42705]
[1725934685046,0.81254,2341.4,2341.3,0.3738]
[1725934686540,0.81254,2341.4,2341.3,0.80084]
[1725934688145,0.81254,2341.4,2341.3,0.3738]
[1725934689247,0.3884,2341.5,2341.3,0.80084]
[1725934689448,0.3884,2341.5,2341.3,1.18914]
[1725934689949,0.42703,2341.4,2341.3,1.18914]
[1725934690545,0.81542,2341.5,2341.4,0.42703]
[1725934690939,0.81542,2341.5,2341.3,1.18913]
[1725934691146,0.81542,2341.5,2341.4,0.42703]
[1725934692945,0.3824,2341.6,2341.5,0.42701]
[1725934693156,0.79497,2341.8,2341.6,0.42698]
[1725934693355,0.79497,2341.8,2341.7,0.7562]
[1725934693544,11.48016339,2341.8,2341.7,0.7562]
[1725934693744,15.75056339,2341.8,2341.7,0.7562]
[1725934694549,15.75056339,2341.8,2341.7,0.3754]
[1725934700155,11.48016339,2341.8,2341.7,0.3754]
[1725934700454,15.75056339,2341.8,2341.7,0.3754]
[1725934704453,11.48016339,2341.8,2341.7,0.3754]
[1725934704654,15.75056339,2341.8,2341.7,0.3754]
[1725934705055,11.48016339,2341.8,2341.7,0.3754]
[1725934705664,15.75056339,2341.8,2341.7,0.3754]
[1725934706563,11.48016339,2341.8,2341.7,0.3754]
[1725934707364,15.75056339,2341.8,2341.7,0.3754]
[1725934707560,10.68519339,2341.8,2341.7,2.03237]
[1725934707866,11.11214339,2341.8,2341.7,2.03237]
[1725934708069,10.68519339,2341.8,2341.7,0.80237]
[1725934709163,11.11214339,2341.8,2341.7,0.80237]
[1725934709561,10.68519339,2341.8,2341.7,0.80237]
[1725934711565,11.11214339,2341.8,2341.7,0.80237]
[1725934712062,10.68519339,2341.8,2341.7,0.80237]
[1725934713171,11.11214339,2341.8,2341.7,0.80237]
[1725934713763,10.68519339,2341.8,2341.7,0.80237]
[1725934714166,11.11214339,2341.8,2341.7,0.80237]
[1725934714365,10.68519339,2341.8,2341.7,0.80237]
[1725934715273,11.11214339,2341.8,2341.7,0.80237]
[1725934716780,11.11214339,2341.8,2341.7,0.3754]
[1725934718077,11.11214339,2341.8,2341.7,0.80237]
[1725934718979,11.11214339,2341.8,2341.7,0.3754]
[1725934720476,11.11214339,2341.8,2341.7,0.80237]
[1725934722077,10.68519339,2341.8,2341.7,0.80237]
[1725934722578,11.11214339,2341.8,2341.7,0.80237]
[1725934726774,10.68519339,2341.8,2341.7,0.80237]
[1725934728281,11.11214339,2341.8,2341.7,0.80237]
[1725934729274,10.68519339,2341.8,2341.7,0.3754]
[1725934729571,11.11214339,2341.8,2341.7,0.3754]
[1725934729878,11.11214339,2341.8,2341.6,1.91742157]
[1725934730782,11.11214339,2341.8,2341.6,1.54732157]
[1725934730981,11.11214339,2341.8,2341.6,1.12034157]
[1725934731983,0.42699,2341.6,2341.5,1.12034157]
[1725934732182,0.3804,2341.7,2341.5,1.12034157]
[1725934732381,11.08566312,2341.6,2341.4,1.54736157]
[1725934732582,11.44986312,2341.6,2341.4,1.54736157]
[1725934732788,0.7912,2341.6,2341.4,1.54736157]
[1725934732983,10.52535931,2341.5,2341.4,1.54736157]
[1725934733284,10.52535931,2341.5,2341.4,3.09705841]
[1725934733486,10.90785931,2341.5,2341.4,3.09705841]
[1725934733879,10.90785931,2341.5,2341.4,3.09719018]
[1725934734490,10.90785931,2341.5,2341.4,3.09708831]
[1725934735186,10.90785931,2341.5,2341.4,3.65736097]
[1725934735587,10.90785931,2341.5,2341.4,3.09723746]
[1725934735788,10.90785931,2341.5,2341.4,3.65736097]
[1725934736689,10.52535931,2341.5,2341.4,3.65736097]
[1725934736890,10.52535931,2341.5,2341.4,1.97684861]
[1725934737076,10.52535931,2341.5,2341.4,4.21346965]
[1725934737280,10.52535931,2341.5,2341.4,4.88111473]
[1725934737690,10.52535931,2341.5,2341.4,4.21346965]
[1725934738289,10.52535931,2341.5,2341.4,4.88112083]
[1725934738790,10.52535931,2341.5,2341.4,7.98239906]
[1725934739680,10.52535931,2341.5,2341.4,4.88112083]
[1725934740487,10.52535931,2341.5,2341.4,12.25362374]
[1725934740786,10.52535931,2341.5,2341.4,11.58597256]
[1725934740986,1.19025,2341.8,2341.7,0.42697]
[1725934741188,0.7633,2341.8,2341.7,3.0974746]
[1725934741392,10.82861324,2341.8,2341.7,4.88781259]
[1725934741692,0.42693,2342.0,2341.7,4.88781259]
[1725934741693,10.82861324,2341.9,2341.8,0.42695]
[1725934741880,10.82861324,2341.9,2341.8,3.0973303]
[1725934742087,0.42693,2342.0,2341.8,3.0973303]
[1725934742292,0.42693,2342.0,2341.9,1.12055169]
[1725934742484,0.42693,2342.0,2341.8,1.54750169]
[1725934742683,10.58942469,2341.9,2341.8,2.10777019]
[1725934742891,10.58942469,2342.0,2341.9,0.42693]
[1725934743181,0.90765,2342.4,2341.9,8.73051499]
[1725934743384,0.3886,2342.3,2342.2,1.65688]
[1725934743584,11.02356215,2342.3,2342.2,2.05758]
[1725934743981,11.02356215,2342.3,2342.2,1.6307]
[1725934747696,11.45042215,2342.3,2342.2,0.4007]
[1725934748188,0.42688,2342.2,2342.1,40.8]
[1725934748496,11.18494592,2342.2,2342.0,1.18162]
[1725934750291,10.75806592,2342.2,2342.0,0.7547]
[1725934750491,11.18495592,2342.2,2342.0,1.18162]
[1725934751397,11.18495592,2342.2,2342.1,0.4269]
[1725934751589,10.75806592,2342.2,2342.1,0.818]
[1725934751986,10.75806592,2342.2,2342.1,2.048]
[1725934752394,11.18494592,2342.2,2342.1,2.048]
[1725934752594,11.18494592,2342.2,2342.1,1.6211]
[1725934753197,11.18494592,2342.2,2342.1,2.048]
[1725934754301,11.18494592,2342.2,2342.1,1.6211]
[1725934754492,11.18494592,2342.2,2342.1,2.048]
[1725934755304,10.75806592,2342.2,2342.1,2.048]
[1725934755599,0.099,2342.7,2342.4,0.42684]
[1725934755801,1.3307871,2342.9,2342.4,1.23]
[1725934756104,0.099,2343.1,2342.2,1.0672]
[1725934756105,0.42679,2342.7,2342.6,1.23]
[1725934756394,11.14912345,2342.7,2342.6,1.23]
[1725934756601,0.42677,2342.9,2342.7,0.42678]
[1725934756902,0.42679,2342.7,2342.6,1.23]
[1725934757196,0.42677,2342.8,2342.6,1.6568]
[1725934757409,0.42678,2342.8,2342.7,0.42679]
[1725934757903,11.13131635,2342.8,2342.6,1.23]
[1725934758091,11.13131635,2342.8,2342.5,0.3795]
[1725934758092,0.42681,2342.6,2342.5,0.3795]
[1725934758292,0.42681,2342.6,2342.4,0.42683]
[1725934758489,0.3946,2342.7,2342.5,0.42682]
[1725934758994,0.3946,2342.7,2342.3,42.7897]
[1725934758995,0.42682,2342.6,2342.3,42.7897]
[1725934759293,0.42682,2342.6,2342.5,0.42683]
[1725934760392,0.3946,2342.7,2342.6,0.42681]
[1725934760393,0.8214,2342.7,2342.6,0.42681]
[1725934760697,0.42678,2342.8,2342.7,0.42678]
[1725934761100,11.1137975,2342.8,2342.7,0.42678]
[1725934761294,11.1137975,2342.8,2342.7,1.18558]
[1725934761495,11.1137975,2342.8,2342.7,0.7588]
[1725934764003,11.1137975,2342.8,2342.7,1.18559]
[1725934764205,11.1137975,2342.8,2342.7,0.7588]
[1725934765409,0.42683,2342.5,2342.4,0.42684]
[1725934766506,1.06696,2342.8,2342.4,1.23]
[1725934766704,1.06696,2342.8,2342.6,0.42681]
[1725934766705,0.4268,2342.7,2342.6,0.42681]
[1725934766905,11.3502693,2342.7,2342.6,0.42681]
[1725934767303,11.3502693,2342.7,2342.6,1.65681]
[1725934770408,0.42682,2342.6,2342.4,1.23]
[1725934770611,10.9234693,2342.7,2342.4,1.65683]
[1725934770612,0.82823,2342.5,2342.4,1.65683]
[1725934770905,0.82823,2342.5,2342.4,1.65684]
[1725934771113,0.42684,2342.4,2342.3,1.9703]
[1725934771302,0.82824,2342.5,2342.4,0.42684]
[1725934774616,0.42684,2342.4,2342.3,2.39716]
[1725934774814,0.42684,2342.4,2342.2,0.3792]
[1725934774815,12.28130597,2342.5,2342.1,0.42689]
[1725934775010,12.28130597,2342.5,2342.1,1.20269]
[1725934775011,0.42688,2342.2,2342.1,1.20269]
[1725934775505,0.80777,2342.3,2342.2,0.42688]
[1725934776214,0.80777,2342.3,2342.1,1.20268]
[1725934776711,0.80777,2342.3,2342.2,0.42688]
[1725934778112,0.42685,2342.4,2342.2,0.42688]
[1725934779317,11.60181597,2342.5,2342.4,0.42684]
[1725934779318,11.20041597,2342.5,2342.4,0.42684]
[1725934780217,11.62724597,2342.5,2342.4,0.42684]
[1725934782109,11.20041597,2342.5,2342.4,0.42684]
[1725934782509,11.62724597,2342.5,2342.4,0.42684]
[1725934782709,11.62724597,2342.5,2342.3,1.65685]
[1725934783732,11.62724597,2342.5,2342.4,0.42684]
[1725934783916,11.20041597,2342.5,2342.4,0.42684]
[1725934784510,11.20041597,2342.5,2342.3,1.65685]
[1725934784511,10.81281597,2342.5,2342.3,1.65685]
[1725934784706,11.18511597,2342.5,2342.4,0.42684]
[1725934785112,0.3723,2342.5,2342.4,0.42684]
[1725934785406,10.80383398,2342.5,2342.4,0.42684]
[1725934786010,10.43153398,2342.5,2342.4,0.42684]
[1725934786519,10.4707857,2342.6,2342.4,0.42684]
[1725934786825,0.42681,2342.6,2342.5,0.3803]
[1725934787023,10.4707857,2342.6,2342.5,0.7536]
[1725934789021,10.4707857,2342.6,2342.5,1.18043]
[1725934789516,10.4707857,2342.6,2342.5,1.54463]
[1725934791619,0.7753,2342.7,2342.6,0.42681]
[1725934791820,0.7753,2342.7,2342.6,1.65681]
[1725934792221,0.52575,2343.0,2342.7,0.42678]
[1725934792522,10.59064426,2342.8,2342.7,0.42678]
[1725934793020,0.3806,2342.9,2342.7,0.42678]
[1725934793226,10.88779063,2342.8,2342.7,0.42678]
[1725934795626,0.3806,2342.9,2342.7,0.42678]
[1725934796128,0.3806,2342.9,2342.8,0.3843]
[1725934797820,0.3806,2342.9,2342.6,0.42684]
[1725934798116,0.3806,2342.9,2342.7,0.42683]
[1725934799028,0.3806,2342.9,2342.7,1.65683]
[1725934799624,0.3806,2342.9,2342.5,0.7444]
[1725934799625,0.42676,2343.1,2342.8,1.6568]
[1725934799930,0.3908,2343.0,2342.9,0.7399]
[1725934801733,0.3908,2343.0,2342.9,0.3758]
[1725934804553,0.3908,2343.0,2342.7,0.3976]
[1725934804727,0.3908,2343.0,2342.8,0.42681]
[1725934806435,0.3908,2343.0,2342.7,0.82442]
[1725934806637,0.3908,2343.0,2342.7,2.05442]
[1725934807226,0.81758,2343.0,2342.7,1.65682]
[1725934807428,0.81758,2343.0,2342.7,0.42682]
[1725934807633,0.81758,2343.0,2342.6,2.30809935]
[1725934808140,0.3819,2342.9,2342.6,2.30809935]
[1725934808343,0.3819,2342.9,2342.6,1.91559935]
[1725934808637,4.2688,2342.8,2342.4,1.12035935]
[1725934808836,0.3833,2342.7,2342.5,0.42686]
[1725934809138,0.7587,2342.7,2342.5,0.42686]
[1725934812238,0.7587,2342.7,2342.6,0.3948]
[1725934813035,0.7587,2342.7,2342.6,0.82165]
[1725934813539,0.7587,2342.7,2342.6,0.3948]
[1725934814138,0.7587,2342.7,2342.6,0.82165]
[1725934814542,0.7587,2342.7,2342.4,0.3878]
[1725934814745,0.7587,2342.7,2342.4,0.42687]
[1725934815146,0.7587,2342.7,2342.5,0.42687]
[1725934815739,1.18553,2342.7,2342.5,0.42687]
[1725934816044,0.7587,2342.7,2342.6,0.42685]
[1725934816249,0.7587,2342.7,2342.5,1.23]
[1725934816647,1.18553,2342.7,2342.5,1.65686]
[1725934818351,1.18553,2342.7,2342.6,0.3798]
[1725934820552,0.7587,2342.7,2342.6,0.3798]
[1725934820854,1.18553,2342.7,2342.6,0.3798]
[1725934821043,0.7587,2342.7,2342.6,0.3798]
[1725934822537,1.18553,2342.7,2342.5,1.23]
[1725934822746,0.7587,2342.7,2342.5,1.23]
[1725934823146,0.7587,2342.7,2342.6,0.42685]
[1725934823654,1.18553,2342.7,2342.5,1.65685]
[1725934830555,1.18553,2342.7,2342.5,2.77720935]
[1725934831461,1.18553,2342.7,2342.5,2.35035935]
[1725934831758,1.18553,2342.7,2342.5,2.77721935]
[1725934832148,0.7587,2342.7,2342.5,2.77721935]
[1725934832353,1.18555,2342.7,2342.5,0.42686]
[1725934835068,1.18555,2342.7,2342.5,0.42687]
[1725934836660,0.35303031,2343.0,2342.5,1.23]
[1725934836955,10.60142116,2342.8,2342.6,1.6213]
[1725934837159,10.60142116,2342.8,2342.7,2.40313]
[1725934837353,11.1189567,2343.1,2342.9,0.42679]
[1725934837657,1.26582,2343.3,2343.1,0.42676]
[1725934837658,0.1,2343.3,2343.1,0.42676]
[1725934837860,0.1,2343.3,2343.2,0.7504]
[1725934838062,0.099,2343.8,2343.7,0.42665]
[1725934838263,0.64027517,2344.0,2343.7,1.65665]
[1725934838466,0.64027517,2344.0,2343.7,1.23]
[1725934838658,10.88276389,2343.9,2343.7,1.23]
[1725934839463,10.88276389,2343.9,2343.7,1.9927]
[1725934840668,11.30937389,2343.9,2343.7,1.9927]
[1725934841163,11.30939389,2343.9,2343.7,0.3834]
[1725934841367,0.42663,2343.8,2343.7,0.3834]
[1725934841663,0.42665,2343.7,2343.4,1.23]
[1725934841864,0.42668,2343.6,2343.3,41.22672]
[1725934842070,0.42668,2343.6,2343.3,42.45672]
[1725934842976,2.29668,2343.6,2343.2,0.3825]
[1725934843269,0.42675,2343.2,2342.9,2.02788]
[1725934843571,12.17640029,2343.5,2342.9,2.02788]
[1725934843572,0.42673,2343.3,2343.0,1.65677]
[1725934843965,12.17640029,2343.5,2343.0,1.23]
[1725934844166,0.42675,2343.2,2343.0,1.23]
[1725934844361,0.42676,2343.1,2343.0,1.23]
[1725934844972,0.42676,2343.1,2342.9,2.0032]
[1725934845364,0.42676,2343.1,2342.9,2.42999]
[1725934846162,0.42675,2343.2,2342.9,1.19999]
[1725934846474,0.42676,2343.1,2342.9,1.19999]
[1725934847675,0.42678,2343.0,2342.9,0.4021]
[1725934847974,0.4268,2342.9,2342.8,0.4022]
[1725934849372,0.42681,2342.8,2342.7,0.3633]
[1725934852578,0.4268,2342.9,2342.7,0.79012]
[1725934852772,0.4268,2342.9,2342.7,0.3633]
[1725934852979,0.42681,2342.8,2342.7,0.3633]
[1725934853278,0.63526434,2342.8,2342.7,0.3633]
[1725934856181,0.88817236,2342.8,2342.7,0.3633]
[1725934857175,1.95521236,2342.8,2342.7,0.3633]